fUSD/lending_fUSD_20250414
["ID","MTS","AMOUNT","RATE_DAILY","PERIOD"]
[357944256,1744607439504,-355.5829134,0.00019178,2]
[357944257,1744607439514,-553.56488912,0.00019178,2]
[357944258,1744607439522,-755.42,0.00019178,2]
[357944259,1744607439533,-600.56238049,0.00019178,2]
[357944260,1744607439542,-500.0,0.00019178,2]
[357944261,1744607439551,-500.0,0.00019178,2]
[357944262,1744607439560,-508.8010617,0.00019178,2]
[357944264,1744607439569,-500.0,0.00019178,2]
[357944266,1744607439578,-500.0,0.00019178,2]
[357944268,1744607439587,-500.0,0.00019178,2]
[357944270,1744607439596,-649.06,0.00019178,2]
[357944272,1744607439605,-500.0,0.00019178,2]
[357944274,1744607439615,-500.0,0.00019178,2]
[357944276,1744607439624,-500.0,0.00019178,2]
[357944278,1744607439633,-500.0,0.00019178,2]
[357944280,1744607439642,-500.0,0.00019178,2]
[357944282,1744607439652,-500.0,0.00019178,2]
[357944283,1744607439661,-513.64205239,0.00019178,2]
[357944290,1744607439711,-500.0,0.00019178,2]
[357944292,1744607439721,-500.0,0.00019178,2]
[357944294,1744607439731,-500.0,0.00019178,2]
[357944296,1744607439740,-500.0,0.00019178,2]
[357944300,1744607439750,-500.0,0.00019178,2]
[357944304,1744607439760,-500.0,0.00019178,2]
[357944306,1744607439770,-500.0,0.00019178,2]
[357944309,1744607439779,-500.0,0.00019178,2]
[357944311,1744607439788,-239.05757451,0.00019178,2]
[357944314,1744607439811,-260.94242549,0.00019178,2]
[357944316,1744607439821,-500.0,0.00019178,2]
[357944318,1744607439830,-500.0,0.00019178,2]
[357944320,1744607439840,-500.0,0.00019178,2]
[357944322,1744607439849,-10.31077417,0.00019178,2]
[357944324,1744607439860,-489.68922583,0.00019178,2]
[357944326,1744607439870,-500.0,0.00019178,2]
[357944328,1744607439879,-627.14768405,0.00019178,2]
[357944330,1744607439888,-500.0,0.00019178,2]
[357944332,1744607439897,-500.0,0.00019178,2]
[357944334,1744607439908,-525.58052178,0.00019178,2]
[357944336,1744607439918,-500.0,0.00019178,2]
[357944338,1744607439928,-530.27240341,0.00019178,2]
[357944340,1744607439938,-632.13816017,0.00019178,2]
[357944342,1744607439949,-500.0,0.00019178,2]
[357944344,1744607439959,-629.63,0.00019178,2]
[357944346,1744607439970,-500.0,0.00019178,2]
[357944348,1744607439980,-500.0,0.00019178,2]
[357944350,1744607439991,-562.01193799,0.00019178,2]
[357944352,1744607440001,-500.0,0.00019178,2]
[357944354,1744607440010,-500.0,0.00019178,2]
[357944356,1744607440020,-595.19797451,0.00019178,2]
[357944358,1744607440029,-538.9223238,0.00019178,2]
[357944360,1744607440039,-500.0,0.00019178,2]
[357944362,1744607440049,-500.0,0.00019178,2]
[357944364,1744607440060,-548.77802676,0.00019178,2]
[357944366,1744607440073,-500.0,0.00019178,2]
[357944368,1744607440083,-510.78197885,0.00019178,2]
[357944370,1744607440092,-500.0,0.00019178,2]
[357944371,1744607440102,-505.61925729,0.00019178,2]
[357944374,1744607440113,-605.84,0.00019178,2]
[357944376,1744607440123,-500.0,0.00019178,2]
[357944378,1744607440132,-500.0,0.00019178,2]
[357944379,1744607440144,-151.0,0.00019178,2]
[357944382,1744607440154,-520.28825663,0.00019178,2]
[357944384,1744607440164,-500.0,0.00019178,2]
[357944386,1744607440180,-452.82930456,0.00019178,2]
[357944387,1744607440190,-500.0,0.00019178,2]
[357944389,1744607440199,-510.25170695,0.00019178,2]
[357944391,1744607440209,-500.0,0.00019178,2]
[357944393,1744607440219,-508.67236938,0.00019178,2]
[357944395,1744607440228,-500.0,0.00019178,2]
[357944397,1744607440238,-500.0,0.00019178,2]
[357944399,1744607440248,-500.0,0.00019178,2]
[357944401,1744607440258,-500.0,0.00019178,2]
[357944403,1744607440268,-500.0,0.00019178,2]
[357944405,1744607440278,-500.0,0.00019178,2]
[357944407,1744607440288,-617.72198286,0.00019178,2]
[357944409,1744607440297,-500.0,0.00019178,2]
[357944411,1744607440310,-667.53,0.00019178,2]
[357944413,1744607440322,-500.0,0.00019178,2]
[357944415,1744607440332,-500.0,0.00019178,2]
[357944417,1744607440342,-500.0,0.00019178,2]
[357944419,1744607440351,-500.0,0.00019178,2]
[357944421,1744607440360,-500.0,0.00019178,2]
[357944423,1744607440369,-440.40168611,0.00019178,2]
[357944425,1744607440379,-500.0,0.00019178,2]
[357944427,1744607440388,-500.0,0.00019178,2]
[357944429,1744607440397,-500.0,0.00019178,2]
[357944431,1744607440407,-500.0,0.00019178,2]
[357944433,1744607440416,-500.0,0.00019178,2]
[357944435,1744607440426,-592.76663329,0.00019178,2]
[357944437,1744607440435,-500.0,0.00019178,2]
[357944439,1744607440445,-502.81812318,0.00019178,2]
[357944441,1744607440455,-500.0,0.00019178,2]
[357944443,1744607440464,-588.21515634,0.00019178,2]
[357944445,1744607440473,-500.0,0.00019178,2]
[357944447,1744607440483,-500.0,0.00019178,2]
[357944449,1744607440492,-544.24402873,0.00019178,2]
[357944451,1744607440502,-500.0,0.00019178,2]
[357944453,1744607440511,-500.0,0.00019178,2]
[357944455,1744607440521,-500.0,0.00019178,2]
[357944457,1744607440530,-500.0,0.00019178,2]
[357944459,1744607440539,-553.05804531,0.00019178,2]
[357944461,1744607440548,-500.0,0.00019178,2]
[357944463,1744607440560,-500.0,0.00019178,2]
[357944465,1744607440569,-500.0,0.00019178,2]
[357944467,1744607440578,-583.84636303,0.00019178,2]
[357944469,1744607440587,-563.84546388,0.00019178,2]
[357944471,1744607440596,-587.03421279,0.00019178,2]
[357944472,1744607440605,-520.95569493,0.00019178,2]
[357944474,1744607440614,-500.0,0.00019178,2]
[357944476,1744607440624,-629.893386,0.00019178,2]
[357944478,1744607440633,-500.0,0.00019178,2]
[357944481,1744607440642,-561.47493268,0.00019178,2]
[357944483,1744607440651,-500.0,0.00019178,2]
[357944484,1744607440660,-500.0,0.00019178,2]
[357944486,1744607440670,-500.0,0.00019178,2]
[357944488,1744607440679,-500.0,0.00019178,2]
[357944490,1744607440687,-500.0,0.00019178,2]
[357944492,1744607440697,-500.0,0.00019178,2]
[357944494,1744607440706,-500.0,0.00019178,2]
[357944496,1744607440715,-500.0,0.00019178,2]
[357944498,1744607440724,-500.0,0.00019178,2]
[357944500,1744607440733,-500.0,0.00019178,2]
[357944502,1744607440743,-500.0,0.00019178,2]
[357944504,1744607440752,-500.0,0.00019178,2]
[357944506,1744607440761,-500.0,0.00019178,2]
[357944508,1744607440770,-500.0,0.00019178,2]
[357944510,1744607440779,-500.0,0.00019178,2]
[357944512,1744607440789,-187.71763451,0.00019178,2]
[357944514,1744607440798,-500.0,0.00019178,2]
[357944516,1744607440806,-8135.07,0.00019178,2]
[357944518,1744607440817,-500.0,0.00019178,2]
[357944520,1744607440826,-500.0,0.00019178,2]
[357944522,1744607440835,-546.84967311,0.00019178,2]
[357944524,1744607440844,-182.57510806,0.00019178,2]
[357944526,1744607440853,-503.93402038,0.00019178,2]
[357944528,1744607440862,-500.0,0.00019178,2]
[357944530,1744607440871,-565.91618476,0.00019178,2]
[357944532,1744607440880,-504.82696135,0.00019178,2]
[357944534,1744607440889,-500.0,0.00019178,2]
[357944536,1744607440898,-500.0,0.00019178,2]
[357944538,1744607440907,-505.95509663,0.00019178,2]
[357944540,1744607440917,-507.21326733,0.00019178,2]
[357944542,1744607440927,-500.0,0.00019178,2]
[357944543,1744607440936,-500.0,0.00019178,2]
[357944544,1744607440945,-250.0,0.000192,2]
[357944545,1744607440954,-387.3289757,0.00019223,2]
[357944546,1744607440965,-500.0,0.00019233,2]
[357944547,1744607440975,-587.14916858,0.00019261,2]
[357944548,1744607440984,-2454.31405103,0.00019261,2]
[357944549,1744607440992,-500.0,0.00019288,2]
[357944550,1744607441002,-500.0,0.00019342,2]
[357944551,1744607441011,-587.14916858,0.00019352,2]
[357944552,1744607441021,-2454.31405103,0.00019352,2]
[357944553,1744607441030,-500.0,0.0001936,2]
[357944554,1744607441039,-1000.0,0.0001936,2]
[357944555,1744607441049,-500.0,0.0001936,2]
[357944556,1744607441059,-500.0,0.00019397,2]
[357944557,1744607441071,-663.00851678,0.000194,2]
[357944558,1744607441082,-250.0,0.00019429,2]
[357944559,1744607441092,-587.14916858,0.00019443,2]
[357944560,1744607441102,-2454.31405103,0.00019443,2]
[357944561,1744607441112,-500.0,0.00019451,2]
[357944562,1744607441123,-500.0,0.00019452,2]
[357944563,1744607441132,-500.0,0.00019452,2]
[357944564,1744607441145,-570.9555202,0.00019452,2]
[357944565,1744607441155,-500.0,0.00019452,2]
[357944566,1744607441165,-542.24728583,0.00019452,2]
[357944567,1744607441175,-500.0,0.00019452,2]
[357944568,1744607441185,-500.0,0.00019452,2]
[357944569,1744607441194,-500.0,0.00019452,2]
[357944570,1744607441204,-500.0,0.00019452,2]
[357944571,1744607441214,-500.0,0.00019452,2]
[357944572,1744607441224,-517.15481435,0.00019452,2]
[357944573,1744607441233,-500.0,0.00019452,2]
[357944574,1744607441243,-500.61146988,0.00019452,2]
[357944575,1744607441252,-500.0,0.00019452,2]
[357944576,1744607441262,-500.0,0.00019452,2]
[357944577,1744607441271,-587.01,0.00019452,2]
[357944578,1744607441281,-550.9226033,0.00019452,2]
[357944579,1744607441290,-593.5,0.00019452,2]
[357944580,1744607441300,-542.40261792,0.00019452,2]
[357944581,1744607441310,-500.0,0.00019452,2]
[357944582,1744607441319,-493.93,0.00019452,2]
[357944583,1744607441329,-524.85605284,0.00019452,2]
[357944584,1744607441338,-500.0,0.00019452,2]
[357944585,1744607441348,-500.0,0.00019452,2]
[357944586,1744607441357,-524.6937429,0.00019452,2]
[357944587,1744607441366,-525.34606674,0.00019452,2]
[357944588,1744607441376,-500.0,0.00019452,2]
[357944589,1744607441385,-500.0,0.00019452,2]
[357944590,1744607441394,-500.0,0.00019452,2]
[357944591,1744607441403,-308.93,0.00019452,2]
[357944592,1744607441412,-267.07383655,0.00019452,2]
[357944593,1744607441421,-500.0,0.00019452,2]
[357944594,1744607441431,-500.0,0.00019452,2]
[357944595,1744607441440,-500.0,0.00019452,2]
[357944596,1744607441450,-533.91970149,0.00019452,2]
[357944597,1744607441459,-240.53300246,0.00019452,2]
[357944598,1744607441469,-500.0,0.00019452,2]
[357944599,1744607441479,-500.0,0.00019452,2]
[357944600,1744607441488,-397.87137465,0.00019452,2]
[357944601,1744607441497,-500.0,0.00019452,2]
[357944602,1744607441507,-500.0,0.00019452,2]
[357944603,1744607441517,-500.0,0.00019452,2]
[357944604,1744607441526,-500.0,0.00019452,2]
[357944605,1744607441536,-500.0,0.00019452,2]
[357944606,1744607441545,-500.0,0.00019452,2]
[357944607,1744607441555,-238.18,0.00019452,2]
[357944608,1744607441567,-531.89,0.00019452,2]
[357944609,1744607441576,-518.64,0.00019452,2]
[357944610,1744607441586,-500.0,0.00019452,2]
[357944611,1744607441597,-500.0,0.00019452,2]
[357944612,1744607441606,-260.30006173,0.00019452,2]
[357944613,1744607441616,-500.0,0.00019452,2]
[357944614,1744607441626,-500.0,0.00019452,2]
[357944615,1744607441635,-500.0,0.00019452,2]
[357944616,1744607441645,-259.59436455,0.00019452,2]
[357944617,1744607441655,-500.0,0.00019452,2]
[357944618,1744607441664,-500.0,0.00019452,2]
[357944619,1744607441674,-500.0,0.00019452,2]
[357944620,1744607441684,-500.0,0.00019452,2]
[357944621,1744607441693,-500.0,0.00019452,2]
[357944622,1744607441703,-500.0,0.00019452,2]
[357944623,1744607441712,-500.0,0.00019452,2]
[357944624,1744607441722,-552.34,0.00019452,2]
[357944625,1744607441731,-373.47178315,0.00019452,2]
[357944626,1744607441741,-500.0,0.00019452,2]
[357944627,1744607441751,-222.54583877,0.00019452,2]
[357944628,1744607441761,-500.0,0.00019452,2]
[357944629,1744607441771,-500.0,0.00019452,2]
[357944630,1744607441780,-500.0,0.00019452,2]
[357944631,1744607441790,-626.60816572,0.00019452,2]
[357944632,1744607441799,-568.89173101,0.00019452,2]
[357944633,1744607441809,-460.26216967,0.00019452,2]
[357944634,1744607441819,-521.80022286,0.00019452,2]
[357944635,1744607441829,-500.0,0.00019452,2]
[357944636,1744607441839,-500.0,0.00019452,2]
[357944637,1744607441849,-162.74237369,0.00019452,2]
[357944638,1744607441860,-500.0,0.00019452,2]
[357944639,1744607441870,-500.0,0.00019452,2]
[357944640,1744607441880,-550.11733968,0.00019452,2]
[357944641,1744607441890,-500.0,0.00019452,2]
[357944642,1744607441900,-484.19959971,0.00019452,2]
[357944643,1744607441910,-538.68234339,0.00019452,2]
[357944644,1744607441920,-532.92732066,0.00019452,2]
[357944645,1744607441930,-287.6,0.00019452,2]
[357944646,1744607441941,-500.0,0.00019452,2]
[357944647,1744607441952,-500.0,0.00019452,2]
[357944648,1744607441963,-509.70222696,0.00019452,2]
[357944649,1744607441973,-605.10716523,0.00019452,2]
[357944650,1744607441984,-314.78781203,0.00019452,2]
[357944651,1744607441995,-500.0,0.00019452,2]
[357944652,1744607442005,-500.0,0.00019452,2]
[357944653,1744607442015,-500.0,0.00019452,2]
[357944654,1744607442025,-511.39764188,0.00019452,2]
[357944655,1744607442036,-500.0,0.00019452,2]
[357944656,1744607442046,-500.0,0.00019452,2]
[357944657,1744607442056,-299.4431764,0.00019452,2]
[357944658,1744607442070,-529.97231892,0.00019452,2]
[357944659,1744607442082,-373.34301307,0.00019452,2]
[357944660,1744607442092,-521.11706043,0.00019452,2]
[357944661,1744607442101,-513.20266798,0.00019452,2]
[357944662,1744607442112,-511.34136429,0.00019452,2]
[357944663,1744607442123,-518.57703926,0.00019452,2]
[357944664,1744607442132,-500.0,0.00019452,2]
[357944665,1744607442142,-565.57103892,0.00019452,2]
[357944666,1744607442153,-628.19210448,0.00019452,2]
[357944667,1744607442163,-500.0,0.00019452,2]
[357944668,1744607442173,-608.0779036,0.00019452,2]
[357944669,1744607442183,-500.0,0.00019452,2]
[357944670,1744607442193,-419.36351243,0.00019452,2]
[357944671,1744607442203,-500.0,0.00019452,2]
[357944672,1744607442214,-201.17767286,0.00019452,2]
[357944673,1744607442225,-567.19685884,0.00019452,2]
[357944674,1744607442235,-184.18302994,0.00019452,2]
[357944675,1744607442245,-532.30799987,0.00019452,2]
[357944676,1744607442255,-500.0,0.00019452,2]
[357944677,1744607442265,-500.0,0.00019452,2]
[357944678,1744607442276,-552.36,0.00019452,2]
[357944679,1744607442286,-500.0,0.00019452,2]
[357944680,1744607442296,-526.96041092,0.00019452,2]
[357944681,1744607442306,-500.0,0.00019452,2]
[357944682,1744607442318,-500.0,0.00019452,2]
[357944683,1744607442328,-500.0,0.00019452,2]
[357944684,1744607442338,-500.0,0.00019452,2]
[357944685,1744607442349,-500.0,0.00019452,2]
[357944686,1744607442359,-524.15520614,0.00019452,2]
[357944687,1744607442370,-500.0,0.00019452,2]
[357944688,1744607442380,-500.0,0.00019452,2]
[357944689,1744607442391,-500.0,0.00019452,2]
[357944690,1744607442401,-543.67831194,0.00019452,2]
[357944691,1744607442411,-500.0,0.00019452,2]
[357944692,1744607442421,-500.0,0.00019452,2]
[357944693,1744607442431,-500.0,0.00019452,2]
[357944694,1744607442442,-517.87552094,0.00019452,2]
[357944695,1744607442452,-500.0,0.00019452,2]
[357944696,1744607442462,-500.0,0.00019452,2]
[357944697,1744607442473,-398.0934683,0.00019452,2]
[357944698,1744607442484,-500.0,0.00019452,2]
[357944699,1744607442494,-500.0,0.00019452,2]
[357944700,1744607442504,-500.0,0.00019452,2]
[357944701,1744607442514,-512.68931907,0.00019452,2]
[357944702,1744607442525,-500.0,0.00019452,2]
[357944703,1744607442535,-632.16051934,0.00019452,2]
[357944704,1744607442547,-568.26297613,0.00019452,2]
[357944705,1744607442559,-523.82117931,0.00019452,2]
[357944706,1744607442571,-500.0,0.00019452,2]
[357944707,1744607442581,-500.0,0.00019452,2]
[357944708,1744607442592,-530.93407784,0.00019452,2]
[357944709,1744607442604,-533.71263138,0.00019452,2]
[357944710,1744607442616,-516.69110137,0.00019452,2]
[357944711,1744607442627,-500.0,0.00019452,2]
[357944712,1744607442640,-500.0,0.00019452,2]
[357944713,1744607442651,-550.73016119,0.00019452,2]
[357944714,1744607442661,-219.72185045,0.00019452,2]
[357944715,1744607442671,-500.0,0.00019452,2]
[357944716,1744607442681,-500.0,0.00019452,2]
[357944717,1744607442691,-614.12,0.00019452,2]
[357944718,1744607442702,-563.59116161,0.00019452,2]
[357944719,1744607442712,-500.0,0.00019452,2]
[357944720,1744607442723,-511.02539536,0.00019452,2]
[357944721,1744607442733,-994.27,0.00019452,2]
[357944722,1744607442743,-500.0,0.00019452,2]
[357944723,1744607442755,-525.2701013,0.00019452,2]
[357944724,1744607442765,-500.0,0.00019452,2]
[357944725,1744607442775,-500.0,0.00019452,2]
[357944726,1744607442785,-500.0,0.00019452,2]
[357944727,1744607442795,-500.0,0.00019452,2]
[357944728,1744607442805,-500.0,0.00019452,2]
[357944729,1744607442817,-500.0,0.00019452,2]
[357944730,1744607442827,-500.0,0.00019452,2]
[357944731,1744607442838,-500.0,0.00019452,2]
[357944732,1744607442847,-500.0,0.00019452,2]
[357944733,1744607442858,-891.77,0.00019452,2]
[357944734,1744607442868,-354.76672973,0.00019452,2]
[357944735,1744607442878,-500.0,0.00019452,2]
[357944736,1744607442890,-500.0,0.00019452,2]
[357944737,1744607442900,-500.0,0.00019452,2]
[357944738,1744607442910,-500.0,0.00019452,2]
[357944739,1744607442920,-1000.0,0.00019452,2]
[357944740,1744607442930,-517.48353604,0.00019452,2]
[357944741,1744607442940,-500.0,0.00019452,2]
[357944742,1744607442951,-500.0,0.00019452,2]
[357944743,1744607442961,-516.86040785,0.00019452,2]
[357944744,1744607442971,-500.0,0.00019452,2]
[357944745,1744607442981,-509.80416504,0.00019452,2]
[357944746,1744607442991,-500.0,0.00019452,2]
[357944747,1744607443001,-500.0,0.00019452,2]
[357944748,1744607443012,-592.02695205,0.00019452,2]
[357944749,1744607443022,-1629.59,0.00019452,2]
[357944750,1744607443031,-615.78106471,0.00019452,2]
[357944751,1744607443041,-515.98720866,0.00019452,2]
[357944752,1744607443051,-500.0,0.00019452,2]
[357944753,1744607443062,-531.9,0.00019452,2]
[357944754,1744607443075,-500.0,0.00019452,2]
[357944755,1744607443091,-500.0,0.00019452,2]
[357944756,1744607443101,-500.0,0.00019452,2]
[357944757,1744607443111,-543.83,0.00019452,2]
[357944758,1744607443121,-183.27769322,0.00019452,2]
[357944759,1744607443131,-500.0,0.00019452,2]
[357944760,1744607443141,-500.0,0.00019452,2]
[357944761,1744607443151,-500.0,0.00019452,2]
[357944762,1744607443161,-338.32,0.00019452,2]
[357944763,1744607443170,-500.0,0.00019452,2]
[357944764,1744607443180,-524.61717776,0.00019452,2]
[357944765,1744607443189,-500.0,0.00019452,2]
[357944766,1744607443199,-500.0,0.00019452,2]
[357944767,1744607443209,-500.0,0.00019452,2]
[357944768,1744607443218,-500.0,0.00019452,2]
[357944769,1744607443227,-500.0,0.00019452,2]
[357944770,1744607443239,-550.74280374,0.00019452,2]
[357944771,1744607443248,-500.0,0.00019452,2]
[357944772,1744607443257,-626.28229039,0.00019452,2]
[357944773,1744607443266,-631.19112299,0.00019452,2]
[357944774,1744607443276,-510.07237501,0.00019452,2]
[357944775,1744607443285,-500.0,0.00019452,2]
[357944776,1744607443295,-525.26980755,0.00019452,2]
[357944777,1744607443305,-500.0,0.00019452,2]
[357944783,1744607443457,-500.0,0.00019452,2]
[357944784,1744607443468,-522.49,0.00019452,2]
[357944785,1744607443478,-500.0,0.00019452,2]
[357944786,1744607443487,-523.84596405,0.00019452,2]
[357944787,1744607443497,-500.0,0.00019452,2]
[357944788,1744607443507,-500.0,0.00019452,2]
[357944789,1744607443516,-500.0,0.00019452,2]
[357944790,1744607443526,-390.47128146,0.00019452,2]
[357944791,1744607443536,-558.68065263,0.00019452,2]
[357944792,1744607443547,-500.0,0.00019452,2]
[357944793,1744607443561,-500.0,0.00019452,2]
[357944794,1744607443571,-486.14232291,0.00019452,2]
[357944795,1744607443581,-500.0,0.00019452,2]
[357944796,1744607443591,-500.0,0.00019452,2]
[357944797,1744607443600,-524.42801873,0.00019452,2]
[357944798,1744607443610,-500.0,0.00019452,2]
[357944799,1744607443620,-500.0,0.00019452,2]
[357944800,1744607443630,-500.0,0.00019452,2]
[357944801,1744607443639,-500.0,0.00019452,2]
[357944802,1744607443649,-500.0,0.00019452,2]
[357944803,1744607443659,-532.52345516,0.00019452,2]
[357944804,1744607443668,-500.0,0.00019452,2]
[357944805,1744607443678,-500.0,0.00019452,2]
[357944806,1744607443688,-186.65737806,0.00019452,2]
[357944807,1744607443698,-658.14,0.00019452,2]
[357944808,1744607443708,-530.17100391,0.00019452,2]
[357944809,1744607443718,-551.01156463,0.00019452,2]
[357944810,1744607443728,-500.0,0.00019452,2]
[357944811,1744607443738,-160.21385424,0.00019452,2]
[357944812,1744607443747,-500.0,0.00019452,2]
[357944813,1744607443757,-500.0,0.00019452,2]
[357944814,1744607443766,-500.0,0.00019452,2]
[357944815,1744607443776,-500.0,0.00019452,2]
[357944816,1744607443786,-500.0,0.00019452,2]
[357944817,1744607443796,-755.42,0.00019452,2]
[357944818,1744607443806,-500.0,0.00019452,2]
[357944819,1744607443817,-500.0,0.00019452,2]
[357944820,1744607443828,-500.0,0.00019452,2]
[357944821,1744607443838,-435.64,0.00019452,2]
[357944822,1744607443848,-500.0,0.00019452,2]
[357944823,1744607443858,-500.0,0.00019452,2]
[357944824,1744607443867,-511.25971261,0.00019452,2]
[357944825,1744607443877,-525.02916713,0.00019452,2]
[357944826,1744607443886,-500.0,0.00019452,2]
[357944827,1744607443896,-180.69301737,0.00019452,2]
[357944828,1744607443906,-345.31678622,0.00019452,2]
[357944829,1744607443915,-170.77725454,0.00019452,2]
[357944830,1744607443925,-500.0,0.00019452,2]
[357944831,1744607443934,-255.39,0.00019452,2]
[357944832,1744607443944,-500.0,0.00019452,2]
[357944833,1744607443954,-500.0,0.00019452,2]
[357944834,1744607443963,-500.0,0.00019452,2]
[357944835,1744607443973,-623.21207101,0.00019452,2]
[357944836,1744607443983,-500.0,0.00019452,2]
[357944837,1744607443993,-500.0,0.00019452,2]
[357944838,1744607444003,-458.98197,0.00019452,2]
[357944839,1744607444012,-500.0,0.00019452,2]
[357944840,1744607444022,-550.94657796,0.00019452,2]
[357944841,1744607444031,-629.63,0.00019452,2]
[357944842,1744607444041,-512.39868009,0.00019452,2]
[357944843,1744607444051,-500.0,0.00019452,2]
[357944844,1744607444064,-530.01031298,0.00019452,2]
[357944845,1744607444077,-500.0,0.00019452,2]
[357944846,1744607444087,-532.98134001,0.00019452,2]
[357944847,1744607444097,-573.21021521,0.00019452,2]
[357944848,1744607444107,-500.0,0.00019452,2]
[357944849,1744607444120,-556.69553285,0.00019452,2]
[357944850,1744607444130,-500.0,0.00019452,2]
[357944851,1744607444140,-154.30620524,0.00019452,2]
[357944852,1744607444151,-539.47460446,0.00019452,2]
[357944853,1744607444161,-519.4981613,0.00019452,2]
[357944854,1744607444170,-500.0,0.00019452,2]
[357944855,1744607444179,-500.0,0.00019452,2]
[357944856,1744607444188,-500.0,0.00019452,2]
[357944857,1744607444197,-667.53,0.00019452,2]
[357944858,1744607444207,-500.0,0.00019452,2]
[357944859,1744607444217,-492.15,0.00019452,2]
[357944860,1744607444226,-500.0,0.00019452,2]
[357944861,1744607444236,-500.0,0.00019452,2]
[357944862,1744607444245,-500.0,0.00019452,2]
[357944863,1744607444255,-508.47591617,0.00019452,2]
[357944864,1744607444264,-501.89642457,0.00019452,2]
[357944865,1744607444274,-500.5717482,0.00019452,2]
[357944866,1744607444283,-539.99691352,0.00019452,2]
[357944867,1744607444294,-500.0,0.00019452,2]
[357944868,1744607444304,-614.6448582,0.00019452,2]
[357944869,1744607444315,-516.27354748,0.00019452,2]
[357944870,1744607444324,-559.85552729,0.00019452,2]
[357944871,1744607444334,-570.80055887,0.00019452,2]
[357944872,1744607444343,-645.82898097,0.00019452,2]
[357944873,1744607444353,-500.0,0.00019452,2]
[357944874,1744607444363,-500.0,0.00019452,2]
[357944875,1744607444372,-500.0,0.00019452,2]
[357944876,1744607444382,-500.0,0.00019452,2]
[357944877,1744607444392,-514.70733894,0.00019452,2]
[357944878,1744607444401,-500.0,0.00019452,2]
[357944879,1744607444411,-500.0,0.00019452,2]
[357944880,1744607444420,-535.24668013,0.00019452,2]
[357944881,1744607444430,-500.0,0.00019452,2]
[357944882,1744607444439,-8135.07,0.00019452,2]
[357944883,1744607444449,-500.0,0.00019452,2]
[357944884,1744607444458,-506.21047242,0.00019452,2]
[357944885,1744607444467,-499.06606387,0.00019452,2]
[357944886,1744607444476,-1581.29,0.0001946,2]
[357944887,1744607444486,-5777.87146306,0.00019468,2]
[357944888,1744607444495,-502.90277105,0.00019473,2]
[357944889,1744607444505,-500.0,0.00019473,2]
[357944890,1744607444515,-500.0,0.00019473,2]
[357944891,1744607444525,-503.66283739,0.00019473,2]
[357944892,1744607444535,-572.67282646,0.00019473,2]
[357944893,1744607444545,-500.0,0.00019473,2]
[357944894,1744607444555,-649.27122602,0.00019489,2]
[357944895,1744607444570,-416.00464962,0.00019507,2]
[357944896,1744607444581,-587.14916858,0.00019535,2]
[357944897,1744607444591,-2454.31405103,0.00019535,2]
[357944898,1744607444601,-300.0,0.00019569,2]
[357944899,1744607444611,-387.3289757,0.0001959,2]
[357944900,1744607444620,-1408.45296512,0.000196,2]
[357944901,1744607444630,-587.14916858,0.00019626,2]
[357944902,1744607444641,-2454.31405103,0.00019626,2]
[357944903,1744607444651,-1230.90581508,0.00019683,2]
[357944904,1744607444661,-879.67494046,0.00019684,2]